bitfinex-derivatives/quotes_SOLF0:USTF0_20250831
["timestamp","ask_amount","ask_price","bid_price","bid_amount"]
[1756607542193,0.03314464,205.39,205.35,7.28]
[1756607542398,2.56365554,205.38,205.35,7.28]
[1756607542598,2.56365554,205.37,205.35,7.28]
[1756607542795,0.03314464,205.39,205.35,7.28]
[1756607542999,2.56443932,205.38,205.34,2.10211608]
[1756607543295,2.56444075,205.37,205.34,2.10211608]
[1756607543499,0.03314464,205.39,205.35,7.28]
[1756607543701,2.56613089,205.38,205.34,2.10211608]
[1756607543901,2.56613089,205.37,205.35,7.28]
[1756607544099,0.03314464,205.39,205.35,7.28]
[1756607544299,2.56643168,205.38,205.34,2.10211608]
[1756607544494,0.03314464,205.39,205.34,2.10211608]
[1756607544695,2.5685147,205.38,205.34,2.10211608]
[1756607544899,0.03314464,205.39,205.35,7.28]
[1756607545196,2.56856005,205.38,205.35,7.28]
[1756607545397,2.56856005,205.37,205.35,7.28]
[1756607545601,0.03314464,205.39,205.35,7.28]
[1756607545797,7.48,205.46,205.38,7.28]
[1756607545993,7.48,205.46,205.41,2.10211608]
[1756607546197,7.48,205.46,205.42,7.28]
[1756607546997,7.48,205.46,205.42,7.31503495]
[1756607547506,7.48,205.51,205.42,7.31503495]
[1756607547706,7.48,205.49,205.42,7.31503495]
[1756607549304,3.69157447,205.48,205.42,7.31503495]
[1756607549502,7.48,205.49,205.42,7.31503495]
[1756607555811,7.48,205.49,205.42,0.03503495]
[1756607556811,7.48,205.47,205.42,0.03503495]
[1756607557909,7.51,205.45,205.42,0.03503495]
[1756607558210,7.51,205.43,205.42,0.03503495]
[1756607558411,10.0330345,205.43,205.42,0.03503495]
[1756607558811,2.5230345,205.43,205.42,0.03503495]
[1756607559113,2.5230345,205.43,205.42,7.79503495]
[1756607561414,2.5230345,205.43,205.42,0.03503495]
[1756607563814,10.0330345,205.43,205.42,0.03503495]
[1756607564706,10.0384248,205.43,205.42,0.03503495]
[1756607566522,2.5284248,205.43,205.42,0.03503495]
[1756607570523,10.0384248,205.43,205.42,0.03503495]
[1756607573926,2.5284248,205.43,205.42,7.79503495]
[1756607574521,10.0384248,205.43,205.42,0.03503495]
[1756607575422,10.03740097,205.43,205.42,0.03503495]
[1756607575824,7.51,205.43,205.42,0.03503495]
[1756607576026,7.51,205.42,205.33,15.23827521]
[1756607576217,7.51,205.4,205.33,15.23827521]
[1756607576418,2.52741299,205.39,205.33,15.23827521]
[1756607576623,10.03741299,205.38,205.34,7.76]
[1756607576826,2.52741299,205.37,205.34,7.76]
[1756607577026,2.52741299,205.36,205.34,7.76]
[1756607577228,2.52741299,205.35,205.34,7.76]
[1756607577429,0.03704785,205.38,205.34,7.76]
[1756607577631,2.52370913,205.37,205.36,7.76]
[1756607578825,2.52370913,205.37,205.36,2.10211608]
[1756607579028,2.52370913,205.37,205.36,10.34211608]
[1756607579229,0.03139837,205.38,205.37,7.76]
[1756607580128,7.51,205.47,205.37,5.85615913]
[1756607580324,7.51,205.47,205.39,2.10211608]
[1756607581734,7.51,205.47,205.41,0.03244753]
[1756607589335,7.92,205.45,205.41,0.03244753]
[1756607589640,7.92,205.44,205.41,0.03244753]
[1756607589833,120.08,205.51,205.41,0.03244753]
[1756607589834,7.92,205.5,205.41,0.03244753]
[1756607590639,2.10211608,205.49,205.41,0.03244753]
[1756607590840,7.92,205.48,205.41,0.03244753]
[1756607591139,2.39680606,205.47,205.41,0.03244753]
[1756607591336,10.31680606,205.46,205.41,0.03244753]
[1756607591534,7.92,205.44,205.41,0.03244753]
[1756607591730,7.92,205.42,205.41,0.03244753]
[1756607591930,10.31680606,205.42,205.41,0.03244753]
[1756607593338,2.39680606,205.42,205.41,7.49244753]
[1756607595542,2.39929392,205.42,205.41,7.49244753]
[1756607598340,10.31929392,205.42,205.41,0.03244753]
[1756607598641,10.31929392,205.42,205.41,7.49244753]
[1756607598642,2.39929392,205.42,205.41,7.49244753]
[1756607598942,10.31929392,205.42,205.41,0.03244753]
[1756607603246,2.39929392,205.42,205.41,0.03244753]
[1756607604541,10.31929392,205.42,205.41,0.03244753]
[1756607606145,2.39929392,205.42,205.41,0.03244753]
[1756607606349,2.39642393,205.42,205.41,0.03244753]
[1756607607652,2.39642393,205.42,205.41,7.49244753]
[1756607607949,10.31642393,205.42,205.41,0.03244753]
[1756607608946,2.39642393,205.42,205.41,0.03244753]
[1756607613048,2.39642393,205.42,205.41,7.49244753]
[1756607615049,7.92,205.49,205.41,7.97244753]
[1756607615254,7.92,205.49,205.44,2.10211608]
[1756607615455,7.92,205.54,205.44,2.10211608]
[1756607615754,7.92,205.54,205.44,2.13281636]
[1756607616347,10.02211608,205.54,205.44,2.13281636]
[1756607618059,7.92,205.54,205.44,2.13281636]
[1756607618659,128.06,205.54,205.44,2.13281636]
[1756607619160,128.02,205.54,205.44,2.13281636]
[1756607621265,7.92,205.54,205.44,2.13281636]
[1756607621566,128.0,205.54,205.45,7.26]
[1756607622262,128.0,205.54,205.44,2.13281636]
[1756607622466,128.0,205.54,205.44,0.03070028]
[1756607627172,7.48,205.52,205.44,0.03070028]
[1756607627373,7.48,205.5,205.44,0.03070028]
[1756607627562,2.33656705,205.49,205.44,0.03070028]
[1756607627765,9.81695155,205.48,205.44,0.03070028]
[1756607627965,7.48,205.46,205.44,0.03070028]
[1756607628167,2.33695155,205.45,205.44,0.03070028]
[1756607629868,9.81695155,205.45,205.44,0.03070028]
[1756607631475,2.33695155,205.45,205.44,0.03070028]
[1756607631675,9.81695155,205.45,205.44,0.03070028]
[1756607635781,2.33695155,205.45,205.44,0.03070028]
[1756607636376,2.33695155,205.45,205.44,7.29070028]
[1756607637675,2.33695155,205.45,205.44,7.77070028]
[1756607637874,7.48,205.51,205.44,7.77070028]
[1756607638075,7.48,205.51,205.47,7.26]
[1756607638376,7.48,205.56,205.47,7.26]
[1756607640486,7.48,205.56,205.49,0.03244882]
[1756607642776,127.24,205.56,205.49,0.03244882]
[1756607649292,128.59005204,205.56,205.49,1.38250086]
[1756607651692,7.4,205.51,205.49,0.03244882]
[1756607651991,127.04,205.51,205.49,0.03244882]
[1756607659901,0.48,205.5,205.38,9.88044762]
[1756607660102,121.75044762,205.51,205.38,9.88044762]
[1756607660297,7.4,205.5,205.38,9.88044762]
[1756607660494,121.75044762,205.51,205.38,9.88044762]
[1756607660699,7.4,205.5,205.38,9.88044762]
[1756607661103,7.4,205.46,205.38,9.88044762]
[1756607661401,119.64,205.45,205.38,9.88044762]
[1756607662904,7.4,205.44,205.38,7.77]
[1756607666001,7.4,205.44,205.39,2.11044762]
[1756607666305,7.4,205.44,205.4,7.77]
[1756607666910,7.4,205.44,205.39,2.11044762]
[1756607667701,7.4,205.44,205.4,7.77]
[1756607667899,7.4,205.44,205.39,2.11044762]
[1756607668104,7.4,205.44,205.4,7.77]
[1756607669102,7.4,205.44,205.39,2.11044762]
[1756607669306,7.4,205.44,205.4,7.77]
[1756607669812,7.4,205.44,205.39,2.11044762]
[1756607670213,7.4,205.44,205.4,7.77]
[1756607670511,7.4,205.44,205.39,2.11044762]
[1756607670713,7.4,205.44,205.4,7.77]
[1756607671015,7.4,205.44,205.39,2.11044762]
[1756607671715,7.4,205.44,205.4,7.77]
[1756607672107,7.4,205.44,205.39,2.11044762]
[1756607672306,7.4,205.44,205.4,7.77]
[1756607672716,7.4,205.44,205.39,2.11044762]
[1756607673214,119.64,205.45,205.39,7.77]
[1756607673410,7.4,205.44,205.39,7.77]
[1756607673915,7.4,205.44,205.37,2.11044762]
[1756607674715,0.03659039,205.43,205.37,2.11044762]
[1756607675509,7.4,205.42,205.37,2.11044762]
[1756607675908,0.03659039,205.43,205.37,2.11044762]
[1756607676708,7.4,205.42,205.36,7.77]
[1756607677417,0.03659039,205.43,205.37,1.35156775]
[1756607677815,7.52,205.42,205.37,1.35156775]
[1756607678316,7.52,205.42,205.36,1.35156775]
[1756607679321,7.52,205.42,205.34,7.35]
[1756607688015,0.03659039,205.43,205.31,2.11211427]
[1756607688016,0.03659039,205.43,205.31,9.46211427]
[1756607688220,7.52,205.42,205.31,9.46211427]
[1756607688416,7.52,205.43,205.31,9.46211427]
[1756607688820,7.52,205.38,205.31,9.46211427]
[1756607699045,7.52,205.38,205.32,7.35]
[1756607699343,0.03727077,205.39,205.34,8.70197962]
[1756607700339,0.03727077,205.39,205.34,7.35]
[1756607700645,0.03727077,205.39,205.34,8.70197962]
[1756607700836,7.52,205.38,205.34,8.70197962]
[1756607701037,0.03727077,205.39,205.34,8.70197962]
[1756607701840,7.52,205.38,205.34,8.70197962]
[1756607702246,0.03727077,205.39,205.34,8.70197962]
[1756607702743,0.03727077,205.39,205.34,1.35197962]
[1756607702945,7.52,205.38,205.34,8.70197962]
[1756607703146,0.03727077,205.39,205.34,8.70197962]
[1756607703346,0.03727077,205.39,205.34,1.35197962]
[1756607703543,7.55727077,205.39,205.35,7.35]
[1756607703741,7.55727077,205.39,205.34,1.35197962]
[1756607703947,7.52,205.38,205.35,7.35]
[1756607706845,7.52,205.38,205.36,1.35197962]
[1756607707350,7.52,205.38,205.36,8.70197962]
[1756607708048,0.03727077,205.39,205.37,7.19]
[1756607708244,0.03727077,205.39,205.38,8.54197962]
[1756607709347,0.03727077,205.39,205.33,5.37615913]
[1756607709650,0.03727077,205.39,205.38,7.19]
[1756607710642,0.03727077,205.39,205.38,8.54197962]
[1756607714053,0.03727077,205.39,205.38,1.35197962]
[1756607714259,7.34727077,205.39,205.38,1.35197962]
[1756607717265,0.03727077,205.39,205.38,8.54197962]
[1756607718364,0.03727077,205.39,205.38,7.19]
[1756607718865,0.03727077,205.39,205.37,1.35197962]
[1756607719064,0.03727077,205.39,205.37,8.54197962]
[1756607719268,7.34727077,205.39,205.37,8.54197962]
[1756607721769,7.34727077,205.39,205.37,1.35197962]
[1756607722669,7.34727077,205.39,205.37,8.54197962]
[1756607728177,0.03727077,205.39,205.38,7.19]
[1756607739380,9.16197962,205.5,205.38,13.04615913]
[1756607739579,9.16197962,205.5,205.44,8.86197962]
[1756607739777,9.16197962,205.5,205.44,7.51]
[1756607739973,7.81,205.5,205.44,8.86197962]
[1756607740677,7.81,205.51,205.45,0.03379598]
[1756607741874,7.81,205.51,205.45,1.3857756]
[1756607743385,7.81,205.51,205.47,1.35197962]
[1756607743585,7.81,205.51,205.45,8.8957756]
[1756607747986,327.1,205.52,205.47,1.35197962]
[1756607748191,7.81,205.51,205.47,1.35197962]
[1756607748380,327.1,205.52,205.47,1.35197962]
[1756607748781,7.81,205.51,205.47,1.35197962]
[1756607748991,327.1,205.52,205.47,1.35197962]
[1756607749180,7.81,205.51,205.47,1.35197962]
[1756607749484,7.81,205.51,205.45,0.03379598]
[1756607749689,7.81,205.48,205.45,0.03379598]
[1756607749881,7.81,205.46,205.45,0.03379598]
[1756607750085,7.81,205.5,205.46,7.51]
[1756607750390,127.33,205.5,205.46,1.35197962]
[1756607750587,127.33,205.5,205.47,7.51]
[1756607750885,327.1,205.52,205.49,1.35197962]
[1756607751079,327.1,205.52,205.45,0.03379598]
[1756607751080,127.33,205.53,205.51,1.35197962]
[1756607751283,119.52,205.53,205.49,1.35197962]
[1756607751481,119.52,205.53,205.48,1.35197962]
[1756607751787,7.81,205.52,205.49,0.03081459]
[1756607751986,119.52,205.53,205.49,0.03081459]
[1756607752283,7.81,205.52,205.49,0.03081459]
[1756607752689,119.52,205.53,205.49,0.03081459]
[1756607753486,7.81,205.52,205.49,0.03081459]
[1756607753684,119.52,205.53,205.49,0.03081459]
[1756607754186,1.35197962,205.54,205.49,0.03081459]
[1756607754390,7.81,205.51,205.49,0.03081459]
[1756607754590,119.52,205.52,205.49,0.03081459]
[1756607754992,7.81,205.51,205.49,0.03081459]
[1756607756293,7.81,205.53,205.49,0.03081459]
[1756607756488,7.81,205.5,205.49,0.03081459]
[1756607765689,8.29,205.5,205.39,7.51]
[1756607765890,7.81,205.43,205.37,1.35197962]
[1756607766096,7.81,205.41,205.37,1.35197962]
[1756607766296,7.81,205.41,205.38,7.51]
[1756607766498,7.81,205.41,205.37,1.35197962]
[1756607766694,7.81,205.41,205.36,8.86197962]
[1756607766999,7.81,205.4,205.36,8.86197962]
[1756607767399,7.81,205.4,205.37,7.93]
[1756607768496,0.03727266,205.41,205.37,7.93]
[1756607768694,7.73,205.4,205.37,7.93]
[1756607773202,7.73,205.4,205.33,7.93]
[1756607777905,127.25,205.4,205.33,7.93]
[1756607785809,119.52,205.39,205.33,7.93]
[1756607786414,7.73,205.38,205.33,7.93]
[1756607786713,127.25,205.39,205.33,7.93]
[1756607786911,7.73,205.39,205.33,7.93]
[1756607787418,30.01,205.39,205.33,7.93]
[1756607788719,30.01,205.39,205.32,2.11225038]
[1756607789621,30.01,205.39,205.32,10.04225038]
[1756607789918,7.73,205.38,205.32,7.93]
[1756607790117,7.73,205.38,205.29,2.11225038]
[1756607790322,7.73,205.38,205.3,7.93]
[1756607790920,7.76515784,205.36,205.3,7.93]
[1756607791422,7.73,205.35,205.33,7.93]
[1756607791617,7.73,205.35,205.32,1.35230582]
[1756607791821,0.03515784,205.36,205.32,1.35230582]
[1756607792023,7.73,205.35,205.32,1.35230582]
[1756607792214,7.73,205.35,205.32,9.28230582]
[1756607792821,0.03515784,205.36,205.32,9.28230582]
[1756607793126,7.73,205.35,205.32,7.93]
[1756607793424,7.73,205.35,205.33,1.35230582]
[1756607795826,7.73,205.35,205.32,7.93]
[1756607796025,7.73,205.35,205.33,1.35230582]
[1756607796329,0.03515784,205.36,205.33,1.35230582]
[1756607796726,7.73,205.35,205.33,1.35230582]
[1756607797127,0.03515784,205.36,205.33,1.35230582]
[1756607797626,7.62,205.35,205.32,9.28230582]
[1756607797926,0.03515784,205.36,205.32,9.28230582]
[1756607798133,0.03515784,205.36,205.32,1.35230582]
[1756607798333,7.62,205.35,205.32,1.35230582]
[1756607798529,0.03515784,205.36,205.32,1.35230582]
[1756607799231,7.62,205.35,205.32,1.35230582]
[1756607799431,0.03515784,205.36,205.32,1.35230582]
[1756607799725,7.62,205.35,205.32,9.00230582]
[1756607800322,0.03515784,205.36,205.32,9.00230582]
[1756607800827,7.62,205.35,205.32,9.00230582]
[1756607801028,0.03515784,205.36,205.32,9.00230582]
[1756607801427,7.62,205.35,205.33,7.65]
[1756607802126,0.03515784,205.36,205.34,1.35230582]
[1756607802428,0.03515784,205.36,205.35,7.65]
[1756607808434,0.03515784,205.36,205.35,9.00230582]
[1756607810838,7.62,205.48,205.35,9.48230582]
[1756607811041,7.62,205.48,205.42,1.35230582]
[1756607811437,7.62,205.48,205.44,1.35230582]
[1756607811742,1.35230582,205.49,205.44,1.35230582]
[1756607812142,1.35230582,205.49,205.44,1.38864919]
[1756607812338,7.62,205.49,205.44,9.03864919]
[1756607812544,7.62,205.49,205.46,1.35230582]
[1756607813045,7.62,205.49,205.44,0.03634337]
[1756607813343,7.62,205.49,205.44,1.38864919]
[1756607814839,327.1,205.5,205.44,1.38864919]
[1756607815144,7.62,205.49,205.44,1.38864919]
[1756607815345,327.1,205.5,205.44,1.38864919]
[1756607815544,7.62,205.49,205.44,1.38864919]
[1756607816244,327.1,205.5,205.44,1.38864919]
[1756607816441,7.62,205.49,205.44,1.38864919]
[1756607816637,327.1,205.5,205.44,1.38864919]
[1756607816841,7.62,205.49,205.44,1.38864919]
[1756607817342,327.1,205.5,205.44,1.38864919]
[1756607817540,7.62,205.49,205.44,1.38864919]
[1756607817936,327.1,205.5,205.44,1.38864919]
[1756607818647,7.62,205.49,205.44,1.38864919]
[1756607818942,327.1,205.5,205.44,1.38864919]
[1756607819943,7.62,205.49,205.44,1.38864919]
[1756607820448,8.97230582,205.49,205.44,0.03634337]
[1756607821148,8.97230582,205.45,205.35,7.65]
[1756607821451,8.97230582,205.43,205.37,1.35230582]
[1756607821643,52.5,205.42,205.37,1.35230582]
[1756607821844,7.62,205.41,205.37,1.35230582]
[1756607822149,7.62,205.41,205.27,6.22362708]
[1756607822350,7.62,205.41,205.36,1.35230582]
[1756607822551,9.00703469,205.41,205.36,1.35230582]
[1756607822846,7.62,205.4,205.36,1.35230582]
[1756607823052,7.62,205.4,205.35,1.35230582]
[1756607823242,59.0,205.39,205.35,1.35230582]
[1756607823446,7.62,205.38,205.32,2.11269526]
[1756607825247,7.62,205.38,205.31,7.65]
[1756607825453,7.62,205.38,205.31,9.76269526]
[1756607825954,0.03504721,205.37,205.31,9.76269526]
[1756607826152,0.03504721,205.37,205.31,2.11269526]
[1756607826351,0.03504721,205.37,205.32,7.65]
[1756607826656,0.03504721,205.37,205.31,2.11269526]
[1756607826957,0.03504721,205.37,205.32,7.65]
[1756607827350,0.03504721,205.37,205.31,2.11269526]
[1756607828443,0.03504721,205.37,205.32,7.48]
[1756607828850,0.03504721,205.37,205.31,2.11269526]
[1756607829251,7.75504721,205.37,205.31,2.11269526]
[1756607833058,0.03504721,205.37,205.31,9.59269526]
[1756607834560,0.03504721,205.37,205.31,2.11269526]
[1756607834959,0.03504721,205.37,205.32,7.48]
[1756607835960,0.03504721,205.37,205.31,2.11269526]
[1756607836161,0.03504721,205.37,205.32,7.48]
[1756607836357,0.03504721,205.37,205.31,2.11269526]
[1756607836759,0.03504721,205.37,205.32,7.48]
[1756607836954,0.03504721,205.37,205.31,2.11269526]
[1756607837556,0.03504721,205.37,205.32,7.48]
[1756607837873,0.03504721,205.37,205.31,2.11269526]
[1756607838362,0.03504721,205.37,205.32,7.48]
[1756607838559,0.03504721,205.37,205.31,2.11269526]
[1756607838957,0.03504721,205.37,205.32,7.48]
[1756607839361,0.03504721,205.37,205.31,2.11269526]
[1756607839958,0.03504721,205.37,205.32,7.48]
[1756607840163,0.03504721,205.37,205.31,2.11269526]
[1756607840367,0.03504721,205.37,205.32,7.48]
[1756607840662,0.03504721,205.37,205.31,2.11269526]
[1756607840865,0.03504721,205.37,205.32,7.48]
[1756607841659,0.03504721,205.37,205.31,2.11269526]
[1756607842161,0.03504721,205.37,205.32,7.48]
[1756607842364,0.03504721,205.37,205.31,2.11269526]
[1756607843165,0.03504721,205.37,205.32,7.48]
[1756607843365,0.03504721,205.37,205.34,8.83214563]
[1756607843568,0.03504721,205.37,205.34,1.35214563]
[1756607843761,7.72,205.36,205.31,1.35214563]
[1756607844266,7.72,205.36,205.3,1.35214563]
[1756607844663,7.72,205.34,205.24,7.48]
[1756607844967,7.72,205.34,205.28,1.35214563]
[1756607845369,0.03421297,205.33,205.27,7.48]
[1756607846467,7.72,205.32,205.27,7.48]
[1756607846667,0.03421297,205.33,205.27,7.48]
[1756607846860,7.72,205.32,205.27,7.48]
[1756607847863,0.03421297,205.33,205.27,7.48]
[1756607848262,0.03421297,205.33,205.23,2.1138832]
[1756607848462,7.72,205.32,205.24,7.48]
[1756607852475,7.72,205.3,205.24,7.48]
[1756607853564,7.75421297,205.33,205.24,7.48]
[1756607853760,7.75421297,205.33,205.27,7.48]
[1756607853761,0.03421297,205.33,205.27,7.48]
[1756607854164,7.72,205.37,205.27,7.48]
[1756607854565,0.03723362,205.32,205.27,7.48]
[1756607855768,0.03723362,205.32,205.29,7.48]
[1756607856361,0.03723362,205.32,205.28,2.1138832]
[1756607856559,0.03723362,205.32,205.29,7.48]
[1756607856760,0.03723362,205.32,205.28,2.1138832]
[1756607856960,0.03723362,205.32,205.29,7.48]
[1756607857167,0.03723362,205.32,205.28,2.1138832]
[1756607857670,0.03723362,205.32,205.29,7.74]
[1756607858270,0.03723362,205.32,205.28,2.1138832]
[1756607858471,0.03723362,205.32,205.29,7.74]
[1756607858865,0.03723362,205.32,205.28,2.1138832]
[1756607859572,0.03723362,205.32,205.29,7.74]
[1756607859969,0.03723362,205.32,205.28,2.1138832]
[1756607860472,0.03723362,205.32,205.29,7.74]
[1756607860676,0.03723362,205.32,205.31,9.8538832]
[1756607862972,0.03723362,205.32,205.31,7.74]
[1756607869983,0.03723362,205.32,205.31,9.8538832]
[1756607870282,0.03723362,205.32,205.31,7.74]
[1756607883303,0.03723362,205.32,205.31,9.09241996]
[1756607889505,0.03723362,205.32,205.27,7.83]
[1756607889506,7.79723362,205.32,205.27,7.83]
[1756607889705,0.03723362,205.32,205.27,7.83]
[1756607890006,7.76,205.31,205.25,1.35241996]
[1756607891406,7.76,205.31,205.24,7.83]
[1756607895010,0.03723362,205.32,205.26,7.83]
[1756607895403,7.76,205.33,205.26,7.83]
[1756607895904,0.03334444,205.31,205.25,7.83]
[1756607905715,0.03334444,205.31,205.3,9.94429434]
[1756607907814,0.03334444,205.31,205.3,7.83]
[1756607911419,0.03334444,205.31,205.3,9.18248036]
[1756607914524,0.03334444,205.31,205.3,7.83]
[1756607914822,0.03334444,205.31,205.3,9.18248036]
[1756607916717,0.03334444,205.31,205.3,7.83]
[1756607917023,0.03334444,205.31,205.18,0.84786025]
[1756607917024,7.76,205.3,205.27,1.35248036]
[1756607917222,7.76,205.3,205.27,9.18248036]
[1756607919424,7.76,205.3,205.27,7.83]
[1756607921529,0.03241676,205.31,205.24,2.11420534]
[1756607922126,7.49241676,205.31,205.25,7.84]
[1756607932140,0.03241676,205.31,205.3,9.95420534]
[1756607932639,7.46,205.39,205.31,7.84]
[1756607933832,7.46,205.39,205.33,0.03503833]
[1756607934030,7.46,205.39,205.33,7.87503833]
[1756607939345,48.11196585,205.42,205.36,1.35196585]
[1756607939640,7.46,205.41,205.36,1.35196585]
[1756607944641,7.46,205.41,205.33,7.87503833]
[1756607944845,7.46,205.41,205.36,1.35196585]
[1756607946842,5.4415691,205.46,205.38,1.35196585]
[1756607947049,7.46,205.44,205.38,1.35196585]
[1756607947645,7.24,205.45,205.39,0.03225523]
[1756607948250,7.24,205.47,205.4,1.35196585]
[1756607948447,119.28,205.47,205.42,1.35196585]
[1756607948747,7.24,205.46,205.42,9.04196585]
[1756607949447,119.26,205.48,205.42,9.04196585]
[1756607949652,7.24,205.47,205.42,9.04196585]
[1756607949953,119.26,205.47,205.42,9.04196585]
[1756607950547,7.24,205.46,205.42,9.04196585]
[1756607950848,119.26,205.47,205.41,9.04196585]
[1756607951247,119.26,205.47,205.41,1.35196585]
[1756607951448,7.24,205.46,205.4,7.69]
[1756607953247,126.48,205.46,205.4,7.69]
[1756607954852,327.34,205.49,205.39,2.14352937]
[1756607954853,119.24,205.48,205.43,7.69]
[1756607955055,126.48,205.48,205.42,9.80127414]
[1756607955254,126.48,205.48,205.42,7.69]
[1756607955748,119.24,205.48,205.43,0.03558158]
[1756607956153,7.24,205.47,205.43,0.03558158]
[1756607956556,119.24,205.48,205.43,0.03558158]
[1756607956747,7.24,205.46,205.43,0.03558158]
[1756607956945,119.22,205.47,205.43,0.03558158]
[1756607957149,7.24,205.46,205.43,0.03558158]
[1756607957549,119.22,205.47,205.43,0.03558158]
[1756607957755,7.24,205.46,205.43,0.03558158]
[1756607957953,119.22,205.47,205.43,0.03558158]
[1756607958355,7.24,205.46,205.43,0.03558158]
[1756607959253,119.22,205.47,205.43,0.03558158]
[1756607959556,7.24,205.46,205.43,0.03558158]
[1756607959750,119.22,205.47,205.43,0.03558158]
[1756607960156,7.24,205.46,205.43,0.03558158]
[1756607960654,119.22,205.47,205.43,0.03558158]
[1756607960951,7.24,205.46,205.43,0.03558158]
[1756607961159,119.22,205.47,205.43,0.03558158]
[1756607961357,119.22,205.47,205.43,7.72558158]
[1756607961557,119.22,205.47,205.43,0.03558158]
[1756607961761,7.24,205.46,205.43,0.03558158]
[1756607961965,119.22,205.47,205.43,0.03558158]
[1756607962160,7.24,205.46,205.43,0.03558158]
[1756607962364,7.24,205.48,205.43,0.03558158]
[1756607962567,7.24,205.44,205.43,0.03558158]
[1756607971074,126.4,205.44,205.43,0.03558158]
[1756607978773,7.24,205.44,205.43,0.03558158]
[1756607978978,126.38,205.44,205.43,0.03558158]
[1756607980081,7.24,205.44,205.43,0.03558158]
[1756607980286,126.38,205.44,205.43,0.03558158]
[1756607983287,7.24,205.44,205.43,0.03558158]
[1756607983487,126.38,205.44,205.43,0.03558158]
[1756607983887,7.24,205.44,205.43,0.03558158]
[1756607984088,126.36,205.44,205.43,0.03558158]
[1756607984590,7.24,205.44,205.43,0.03558158]
[1756607984789,126.36,205.44,205.43,0.03558158]
[1756607992493,7.24,205.44,205.43,0.03558158]
[1756607992693,126.34,205.44,205.43,0.03558158]
[1756607998896,126.32,205.44,205.43,0.03558158]
[1756608000502,7.24,205.44,205.43,0.03558158]
[1756608000701,126.32,205.44,205.43,0.03558158]
[1756608002602,7.24,205.44,205.43,0.03558158]
[1756608002802,126.32,205.44,205.43,0.03558158]
[1756608007906,7.24,205.44,205.43,0.03558158]
[1756608008207,38.96,205.44,205.43,0.03558158]
[1756608008509,7.24,205.44,205.43,1.38674864]
[1756608008704,69.08,205.44,205.43,1.38674864]
[1756608009210,92.34,205.44,205.43,1.38674864]
[1756608009409,114.44,205.44,205.43,1.38674864]
[1756608011809,7.24,205.44,205.43,1.38674864]
[1756608018311,126.26,205.44,205.43,1.38674864]
[1756608023316,7.24,205.44,205.43,1.38674864]
[1756608023512,33.32,205.44,205.43,1.38674864]
[1756608023912,33.32,205.44,205.43,0.03558158]
[1756608024113,7.68,205.43,205.38,1.35116706]
[1756608024908,2.36452907,205.42,205.38,1.35116706]
[1756608025112,7.68,205.4,205.38,1.35116706]
[1756608025312,52.84452907,205.41,205.38,1.35116706]
[1756608025313,10.04452907,205.39,205.38,1.35116706]
[1756608025813,10.04393905,205.39,205.38,1.35116706]
[1756608027218,2.36393905,205.39,205.38,8.81116706]
[1756608028717,2.36393905,205.39,205.38,7.46]
[1756608028923,2.36420038,205.39,205.38,8.81116706]
[1756608034321,0.0314752,205.42,205.39,7.46]
[1756608034524,0.0314752,205.42,205.41,7.46]
[1756608036423,7.7114752,205.42,205.36,7.46]
[1756608036617,0.0314752,205.42,205.38,1.35116706]
[1756608037020,7.68,205.41,205.38,1.35116706]
[1756608037319,0.0314752,205.42,205.38,1.35116706]
[1756608037524,0.0314752,205.42,205.32,55.90227317]
[1756608037525,7.93,205.41,205.37,1.35116706]
[1756608038022,0.0314752,205.42,205.37,8.64116706]
[1756608038218,7.93,205.41,205.37,8.64116706]
[1756608038615,0.0314752,205.42,205.37,8.64116706]
[1756608039221,7.93,205.41,205.37,8.64116706]